[Event "GER-ch Youth U14 2019"]
[Site "Willingen"]
[Date "2019.06.10"]
[Round "3.15"]
[White "Farokhi, Keyvan"]
[Black "Sinnhoefer, Joshua"]
[Result "1-0"]
[ECO "C54"]
[WhiteElo "1963"]
[BlackElo "1466"]
[Annotator "NA"]
[PlyCount "33"]
[EventDate "2019.06.07"]
[EventType "swiss"]
[EventRounds "9"]
[EventCountry "GER"]
[SourceTitle "playchess.com"]
[Source "ChessBase"]
[SourceQuality "1"]
[TimeControl "40/5400+30:1800+30"]

1. e4 {[%emt 0:00:00]} e5 {[%emt 0:00:00]} 2. Nf3 {[%emt 0:00:00]} Nc6 {[%emt 0:00:00]} 3. Bc4 {[%emt 0:00:00]} Bc5 {[%emt 0:00:00]} 4. c3 {[%emt 0:00:00]} Nf6 {[%emt 0:00:08]} 5. d4 {[%emt 0:00:03]} exd4 {[%emt 0:00:14]} 6. cxd4 {[%emt 0:00:02]} Bb4+ {[%emt 0:00:08]} 7. Kf1 {[%emt 0:00:11]} Nxe4 {[%emt 0:09:44]} 8. d5 {[%emt 0:00:11]} Ne7 {[%emt 0:03:14]} 9. Qd4 {[%emt 0:00:07]} Nf6 {[%emt 0:04:01]} 10. Bg5 {[%emt 0:00:37]} Ng6 {[%emt 0:01:03]} 11. Nc3 {[%emt 0:00:11]} O-O {[%emt 0:00:31]} 12. h4 {[%emt 0:00:48]} h6 {[%emt 0:07:15]} 13. h5 {[%emt 0:00:58]} hxg5 {[%emt 0:05:40]} 14. hxg6 {[%emt 0:00:58]} d6 {[%emt 0:00:18]} 15. gxf7+ {[%emt 0:00:42]} Rxf7 {[%emt 0:01:46]} 16. Nxg5 {[%emt 0:00:16]} Ng4 {[%emt 0:00:57]} 17. Rh8+ {[%emt 0:00:20] normal} 1-0

[Event "GER-ch Youth U14 2019"]
[Site "Willingen"]
[Date "2019.06.10"]
[Round "3.16"]
[White "Haufe, Laurin"]
[Black "Chassard, Cedric"]
[Result "0-1"]
[ECO "C11"]
[WhiteElo "1995"]
[BlackElo "1772"]
[Annotator "NA"]
[PlyCount "68"]
[EventDate "2019.06.07"]
[EventType "swiss"]
[EventRounds "9"]
[EventCountry "GER"]
[SourceTitle "playchess.com"]
[Source "ChessBase"]
[SourceQuality "1"]
[TimeControl "40/5400+30:1800+30"]

1. e4 {[%emt 0:00:00]} e6 {[%emt 0:00:00]} 2. d4 {[%emt 0:00:00]} d5 {[%emt 0:00:00]} 3. Nc3 {[%emt 0:00:00]} Nf6 {[%emt 0:00:00]} 4. e5 {[%emt 0:00:00]} Nfd7 {[%emt 0:00:00]} 5. f4 {[%emt 0:00:00]} c5 {[%emt 0:00:00]} 6. Nce2 {[%emt 0:00:00]} Nc6 {[%emt 0:00:11]} 7. Nf3 {[%emt 0:00:00]} a6 {[%emt 0:02:22]} 8. c3 {[%emt 0:00:41]} Qb6 {[%emt 0:07:59]} 9. g3 {[%emt 0:02:17]} Be7 {[%emt 0:03:31]} 10. Bh3 {[%emt 0:00:44]} cxd4 {[%emt 0:09:44]} 11. cxd4 {[%emt 0:02:29]} a5 {[%emt 0:01:09]} 12. O-O {[%emt 0:02:25]} O-O {[%emt 0:03:37]} 13. Kh1 {[%emt 0:02:15]} a4 {[%emt 0:02:33]} 14. f5 {[%emt 0:06:09]} exf5 {[%emt 0:05:12]} 15. Bxf5 {[%emt 0:00:49]} Qc7 {[%emt 0:00:42]} 16. Nc3 {[%emt 0:09:17]} Nb6 {[%emt 0:01:10]} 17. Bc2 {[%emt 0:01:00]} Nb4 {[%emt 0:11:25]} 18. Nxa4 {[%emt 0:30:44]} Qxc2 {[%emt 0:05:45]} 19. Nxb6 {[%emt 0:12:04]} Bh3 {[%emt 0:02:59]} 20. Qxc2 {[%emt 0:11:43]} Nxc2 {[%emt 0:00:13]} 21. Nxd5 {[%emt 0:00:31]} Bxf1 {[%emt 0:04:18]} 22. Nxe7+ {[%emt 0:00:09]} Kh8 {[%emt 0:00:07]} 23. Rb1 {[%emt 0:00:38]} Bd3 {[%emt 0:00:21]} 24. Ng5 {[%emt 0:03:55]} Nxd4 {[%emt 0:01:34]} 25. Be3 {[%emt 0:00:29]} Bxb1 {[%emt 0:00:34]} 26. Bxd4 {[%emt 0:00:02]} h6 {[%emt 0:00:20]} 27. Nh3 {[%emt 0:00:56]} Be4+ {[%emt 0:00:13]} 28. Kg1 {[%emt 0:00:05]} Rfe8 {[%emt 0:00:21]} 29. Bc5 {[%emt 0:00:31]} Rxa2 {[%emt 0:00:35]} 30. Kf2 {[%emt 0:01:13]} Rxb2+ {[%emt 0:00:17]} 31. Ke3 {[%emt 0:00:04]} Rxh2 {[%emt 0:01:16]} 32. Nf4 {[%emt 0:00:13]} Bc6 {[%emt 0:00:34]} 33. e6 {[%emt 0:00:49]} fxe6 {[%emt 0:00:41]} 34. Nxe6 {[%emt 0:00:20]} Rh5 {[%emt 0:00:56] normal} 0-1

[Event "GER-ch Youth U14 2019"]
[Site "Willingen"]
[Date "2019.06.10"]
[Round "3.17"]
[White "Schubert, Nikita"]
[Black "Divry, Alexandre"]
[Result "1-0"]
[ECO "E04"]
[WhiteElo "1806"]
[BlackElo "1654"]
[Annotator "NA"]
[PlyCount "39"]
[EventDate "2019.06.07"]
[EventType "swiss"]
[EventRounds "9"]
[EventCountry "GER"]
[SourceTitle "playchess.com"]
[Source "ChessBase"]
[SourceQuality "1"]
[TimeControl "40/5400+30:1800+30"]

1. d4 {[%emt 0:00:00]} Nf6 {[%emt 0:00:00]} 2. c4 {[%emt 0:00:00]} e6 {[%emt 0:00:00]} 3. Nf3 {[%emt 0:00:00]} d5 {[%emt 0:00:00]} 4. g3 {[%emt 0:00:08]} dxc4 {[%emt 0:00:00]} 5. Bg2 {[%emt 0:00:14]} c5 {[%emt 0:00:00]} 6. O-O {[%emt 0:08:44]} Nc6 {[%emt 0:00:00]} 7. Qa4 {[%emt 0:05:33]} Bd7 {[%emt 0:01:12]} 8. Qxc4 {[%emt 0:00:43]} b5 {[%emt 0:00:02]} 9. Qd3 {[%emt 0:10:50]} c4 {[%emt 0:00:02]} 10. Qd1 {[%emt 0:02:36]} Be7 {[%emt 0:01:16]} 11. Nc3 {[%emt 0:13:53]} Qb6 {[%emt 0:04:30]} 12. Ne5 {[%emt 0:04:51]} Rd8 {[%emt 0:03:44]} 13. Be3 {[%emt 0:02:17]} Nb4 {[%emt 0:07:10]} 14. a4 {[%emt 0:10:52]} a6 {[%emt 0:03:39]} 15. b3 {[%emt 0:13:07]} Nfd5 {[%emt 0:04:50]} 16. Nxd5 Nxd5 17. bxc4 {[%emt 0:13:21]} bxc4 {[%emt 0:09:31]} 18. Nxc4 {[%emt 0:00:17]} Qb4 {[%emt 0:00:01]} 19. Qd3 {[%emt 0:02:35]} Rc8 {[%emt 0:06:56]} 20. Ne5 {[%emt 0:01:47] normal} 1-0

[Event "GER-ch Youth U14 2019"]
[Site "Willingen"]
[Date "2019.06.10"]
[Round "3.18"]
[White "May, Ben-Iven"]
[Black "Schauties, Nico Antonio"]
[Result "0-1"]
[ECO "C01"]
[WhiteElo "1692"]
[BlackElo "1866"]
[Annotator "NA"]
[PlyCount "77"]
[EventDate "2019.06.07"]
[EventType "swiss"]
[EventRounds "9"]
[EventCountry "GER"]
[SourceTitle "playchess.com"]
[Source "ChessBase"]
[SourceQuality "1"]
[TimeControl "40/5400+30:1800+30"]

1. e4 {[%emt 0:00:00]} e6 {[%emt 0:00:00]} 2. d4 {[%emt 0:00:00]} d5 {[%emt 0:00:00]} 3. exd5 {[%emt 0:00:05]} exd5 {[%emt 0:00:00]} 4. Bd3 {[%emt 0:00:22]} Bd6 {[%emt 0:00:37]} 5. Nf3 {[%emt 0:00:28]} Nf6 {[%emt 0:00:36]} 6. O-O {[%emt 0:00:28]} O-O {[%emt 0:00:07]} 7. Bg5 {[%emt 0:00:33]} Bg4 {[%emt 0:00:20]} 8. Nbd2 {[%emt 0:00:21]} Nbd7 {[%emt 0:00:11]} 9. c3 {[%emt 0:00:11]} c6 {[%emt 0:00:30]} 10. Qc2 {[%emt 0:00:07]} Qc7 {[%emt 0:00:02]} 11. Rfe1 {[%emt 0:00:17]} Rfe8 {[%emt 0:00:23]} 12. Bh4 {[%emt 0:00:27]} Bh5 {[%emt 0:00:37]} 13. Bg3 {[%emt 0:00:06]} Bxg3 {[%emt 0:00:40]} 14. hxg3 {[%emt 0:00:06]} Bg6 {[%emt 0:00:06]} 15. Bxg6 {[%emt 0:00:17]} hxg6 {[%emt 0:01:07]} 16. b4 {[%emt 0:17:32]} b6 {[%emt 0:02:47]} 17. Rac1 {[%emt 0:06:47]} c5 {[%emt 0:05:53]} 18. bxc5 {[%emt 0:17:31]} bxc5 {[%emt 0:00:18]} 19. dxc5 {[%emt 0:01:39]} Rac8 {[%emt 0:03:47]} 20. Rxe8+ {[%emt 0:02:44]} Nxe8 {[%emt 0:00:46]} 21. Nb3 {[%emt 0:13:00]} Nxc5 {[%emt 0:03:29]} 22. c4 {[%emt 0:11:26]} Nxb3 {[%emt 0:12:10]} 23. axb3 {[%emt 0:00:21]} dxc4 {[%emt 0:00:42]} 24. Qxc4 {[%emt 0:00:24]} Qxc4 {[%emt 0:00:09]} 25. bxc4 {[%emt 0:01:06]} Rc5 {[%emt 0:02:15]} 26. Kf1 {[%emt 0:01:26]} Kf8 {[%emt 0:00:46]} 27. Ke2 {[%emt 0:00:40]} Ke7 {[%emt 0:00:49]} 28. Kd3 {[%emt 0:00:57]} Nc7 {[%emt 0:00:19]} 29. Nd2 {[%emt 0:02:17]} Ne6 {[%emt 0:01:03]} 30. Ne4 {[%emt 0:00:41]} Rc7 {[%emt 0:00:33]} 31. Rb1 {[%emt 0:11:28]} Kd7 {[%emt 0:04:44]} 32. Rb5 {[%emt 0:01:04]} Kc6 {[%emt 0:01:46]} 33. Rd5 {[%emt 0:02:41]} Rd7 {[%emt 0:01:22]} 34. Nc3 {[%emt 0:02:12]} Nc7 {[%emt 0:02:11]} 35. Rxd7 {[%emt 0:00:28]} Kxd7 {[%emt 0:00:03]} 36. c5 {[%emt 0:03:06]} Kc6 {[%emt 0:00:52]} 37. Kc4 {[%emt 0:00:03]} Ne6 {[%emt 0:00:21]} 38. Na4 {[%emt 0:02:13]} f5 {[%emt 0:03:35]} 39. Kb4 {[%emt 0:01:43] normal} 0-1

[Event "GER-ch Youth U14 2019"]
[Site "Willingen"]
[Date "2019.06.10"]
[Round "3.19"]
[White "Rockmann, Enno"]
[Black "Wang, Xinyuan"]
[Result "1-0"]
[ECO "B40"]
[WhiteElo "1527"]
[BlackElo "2060"]
[Annotator "NA"]
[PlyCount "47"]
[EventDate "2019.06.07"]
[EventType "swiss"]
[EventRounds "9"]
[EventCountry "GER"]
[SourceTitle "playchess.com"]
[Source "ChessBase"]
[SourceQuality "1"]
[TimeControl "40/5400+30:1800+30"]

1. e4 {[%emt 0:00:00]} c5 {[%emt 0:00:00]} 2. Nf3 {[%emt 0:00:00]} e6 {[%emt 0:00:00]} 3. c3 {[%emt 0:00:00]} d5 {[%emt 0:00:03]} 4. exd5 {[%emt 0:00:00]} exd5 {[%emt 0:00:07]} 5. d4 {[%emt 0:00:02]} Nc6 {[%emt 0:00:18]} 6. Bd3 {[%emt 0:00:11]} cxd4 {[%emt 0:00:52]} 7. cxd4 {[%emt 0:00:35]} Nf6 {[%emt 0:00:10]} 8. Bf4 {[%emt 0:00:32]} Bd6 {[%emt 0:01:27]} 9. Ne5 {[%emt 0:02:32]} Nxd4 {[%emt 0:02:14]} 10. Qa4+ {[%emt 0:00:01]} Nc6 11. Nxc6 {[%emt 0:00:16]} bxc6 {[%emt 0:05:58]} 12. Qxc6+ {[%emt 0:00:05]} Ke7 {[%emt 0:00:49]} 13. Bxd6+ {[%emt 0:00:43]} Qxd6 {[%emt 0:00:06]} 14. Qxa8 {[%emt 0:00:07]} Qe5+ {[%emt 0:00:51]} 15. Be2 {[%emt 0:05:01]} Qxb2 {[%emt 0:02:52]} 16. Qxa7+ {[%emt 0:00:05]} Ke8 {[%emt 0:01:15]} 17. Qa4+ {[%emt 0:02:19]} Nd7 {[%emt 0:04:45]} 18. Qc6 {[%emt 0:04:36]} Qxa1 {[%emt 0:02:23]} 19. Qxc8+ {[%emt 0:00:12]} Ke7 {[%emt 0:00:06]} 20. Qc2 {[%emt 0:00:02]} Rb8 {[%emt 0:02:19]} 21. O-O {[%emt 0:00:25]} Rb2 {[%emt 0:01:43]} 22. Qd3 {[%emt 0:00:40]} Qxa2 {[%emt 0:01:21]} 23. Rc1 {[%emt 0:01:17]} Ne5 {[%emt 0:07:00]} 24. Qa6 {[%emt 0:09:12] normal} 1-0

[Event "GER-ch Youth U14 2019"]
[Site "Willingen"]
[Date "2019.06.10"]
[Round "3.20"]
[White "Kolmykov, Egor"]
[Black "Seng, Alexander"]
[Result "1/2-1/2"]
[ECO "B20"]
[WhiteElo "1642"]
[BlackElo "1505"]
[Annotator "NA"]
[PlyCount "30"]
[EventDate "2019.06.07"]
[EventType "swiss"]
[EventRounds "9"]
[EventCountry "GER"]
[SourceTitle "playchess.com"]
[Source "ChessBase"]
[SourceQuality "1"]
[TimeControl "40/5400+30:1800+30"]

1. e4 {[%emt 0:00:00]} c5 {[%emt 0:00:00]} 2. d3 {[%emt 0:00:00]} Nc6 {[%emt 0:00:00]} 3. g3 {[%emt 0:00:13]} Nf6 {[%emt 0:01:28]} 4. Bg2 {[%emt 0:00:45]} d6 {[%emt 0:00:12]} 5. f4 {[%emt 0:00:18]} g6 {[%emt 0:03:56]} 6. c3 {[%emt 0:03:25]} Bg7 {[%emt 0:02:16]} 7. Nf3 {[%emt 0:00:14]} Qa5 8. Nbd2 {[%emt 0:07:12]} O-O {[%emt 0:06:54]} 9. O-O {[%emt 0:00:14]} Bd7 {[%emt 0:05:28]} 10. Nc4 {[%emt 0:06:27]} Qc7 {[%emt 0:05:10]} 11. e5 {[%emt 0:03:54]} Ne8 {[%emt 0:02:35]} 12. d4 {[%emt 0:01:21]} cxd4 {[%emt 0:08:13]} 13. cxd4 {[%emt 0:01:37]} Rd8 {[%emt 0:04:05]} 14. Ne3 {[%emt 0:04:09]} dxe5 {[%emt 0:15:23]} 15. dxe5 {[%emt 0:15:48]} f6 {[%emt 0:01:13] normal} 1/2-1/2

[Event "GER-ch Youth U14 2019"]
[Site "Willingen"]
[Date "2019.06.10"]
[Round "3.21"]
[White "Weidenhoefer, Max"]
[Black "Straub, Benno"]
[Result "1-0"]
[ECO "C54"]
[WhiteElo "1787"]
[BlackElo "1490"]
[Annotator "NA"]
[PlyCount "55"]
[EventDate "2019.06.07"]
[EventType "swiss"]
[EventRounds "9"]
[EventCountry "GER"]
[SourceTitle "playchess.com"]
[Source "ChessBase"]
[SourceQuality "1"]
[TimeControl "40/5400+30:1800+30"]

1. e4 {[%emt 0:00:00]} e5 {[%emt 0:00:00]} 2. Nf3 {[%emt 0:00:00]} Nc6 {[%emt 0:00:00]} 3. Bc4 {[%emt 0:00:00]} Bc5 {[%emt 0:00:00]} 4. c3 {[%emt 0:00:00]} Nf6 {[%emt 0:00:00]} 5. d3 {[%emt 0:00:00]} d6 {[%emt 0:00:00]} 6. O-O {[%emt 0:00:03]} Bg4 {[%emt 0:00:11]} 7. Bb3 {[%emt 0:02:56]} h6 {[%emt 0:00:28]} 8. Re1 {[%emt 0:01:04]} Qd7 {[%emt 0:00:28]} 9. Nbd2 {[%emt 0:01:16]} Nh5 {[%emt 0:02:10]} 10. Nf1 {[%emt 0:00:56]} Nf4 {[%emt 0:00:52]} 11. d4 {[%emt 0:10:08]} Bb6 {[%emt 0:01:02]} 12. Ba4 {[%emt 0:09:53]} Qe7 {[%emt 0:02:49]} 13. d5 {[%emt 0:01:19]} Qd7 {[%emt 0:01:46]} 14. dxc6 {[%emt 0:00:47]} bxc6 {[%emt 0:00:07]} 15. Bxf4 {[%emt 0:00:34]} exf4 {[%emt 0:00:07]} 16. e5 {[%emt 0:00:53]} O-O-O {[%emt 0:00:24]} 17. exd6 {[%emt 0:05:38]} cxd6 {[%emt 0:00:14]} 18. Qd3 {[%emt 0:02:24]} Be6 {[%emt 0:03:07]} 19. Nd4 {[%emt 0:00:36]} Bd5 {[%emt 0:00:30]} 20. Qf5 {[%emt 0:01:04]} Qxf5 {[%emt 0:07:09]} 21. Nxf5 {[%emt 0:00:07]} Be6 {[%emt 0:03:34]} 22. Nd4 {[%emt 0:00:38]} Bxd4 {[%emt 0:01:49]} 23. cxd4 {[%emt 0:00:10]} Kd7 {[%emt 0:00:49]} 24. Bb3 {[%emt 0:01:29]} Rb8 {[%emt 0:00:58]} 25. Bxe6+ {[%emt 0:00:11]} fxe6 {[%emt 0:00:05]} 26. b3 {[%emt 0:00:11]} Rb4 {[%emt 0:00:53]} 27. Rad1 {[%emt 0:00:38]} Rf8 {[%emt 0:00:21]} 28. h3 {[%emt 0:00:40] normal} 1-0

[Event "GER-ch Youth U14 2019"]
[Site "Willingen"]
[Date "2019.06.10"]
[Round "3.22"]
[White "Wildermuth, Nikolas Karl"]
[Black "Wellssow, Keoki"]
[Result "0-1"]
[ECO "B06"]
[WhiteElo "1748"]
[BlackElo "1509"]
[Annotator "NA"]
[PlyCount "47"]
[EventDate "2019.06.07"]
[EventType "swiss"]
[EventRounds "9"]
[EventCountry "GER"]
[SourceTitle "playchess.com"]
[Source "ChessBase"]
[SourceQuality "1"]
[TimeControl "40/5400+30:1800+30"]

1. e4 {[%emt 0:00:00]} g6 {[%emt 0:00:00]} 2. d4 {[%emt 0:00:00]} Bg7 {[%emt 0:00:00]} 3. Nc3 {[%emt 0:00:00]} d6 {[%emt 0:00:13]} 4. Be3 {[%emt 0:00:05]} a6 {[%emt 0:00:36]} 5. Qd2 {[%emt 0:00:54]} b5 {[%emt 0:00:55]} 6. f3 {[%emt 0:00:27]} Bb7 {[%emt 0:00:56]} 7. O-O-O {[%emt 0:00:39]} Nd7 {[%emt 0:00:59]} 8. Kb1 {[%emt 0:02:20]} c5 {[%emt 0:19:43]} 9. d5 {[%emt 0:02:15]} Nb6 {[%emt 0:02:08]} 10. g4 {[%emt 0:02:49]} b4 {[%emt 0:03:18]} 11. Nce2 Nc4 {[%emt 0:01:21]} 12. Qc1 {[%emt 0:02:23]} Bxb2 {[%emt 0:02:48]} 13. Qxb2 {[%emt 0:00:01]} Nxb2 {[%emt 0:00:14]} 14. Kxb2 {[%emt 0:00:05]} Qa5 {[%emt 0:07:01]} 15. Bc1 {[%emt 0:00:55]} Rb8 {[%emt 0:05:22]} 16. Nf4 {[%emt 0:01:54]} Bc8 {[%emt 0:06:24]} 17. Ng2 {[%emt 0:01:35]} Bd7 {[%emt 0:03:57]} 18. Ne3 {[%emt 0:00:25]} Bb5 {[%emt 0:03:41]} 19. Nc4 {[%emt 0:00:57]} Bxc4 {[%emt 0:00:56]} 20. Bxc4 {[%emt 0:02:21]} Nf6 {[%emt 0:04:55]} 21. Ne2 {[%emt 0:02:52]} Qa3+ {[%emt 0:02:22]} 22. Kb1 {[%emt 0:00:14]} Qxf3 {[%emt 0:01:21]} 23. Rhf1 {[%emt 0:01:13]} Qxe4 {[%emt 0:02:09]} 24. Rf4 {[%emt 0:01:43] normal} 0-1

[Event "GER-ch Youth U14 2019"]
[Site "Willingen"]
[Date "2019.06.11"]
[Round "4.4"]
[White "Gallasch, Jonas"]
[Black "Weihrauch, Jakob"]
[Result "1/2-1/2"]
[ECO "E18"]
[WhiteElo "2137"]
[BlackElo "2158"]
[Annotator "NA"]
[PlyCount "56"]
[EventDate "2019.06.07"]
[EventType "swiss"]
[EventRounds "9"]
[EventCountry "GER"]
[SourceTitle "playchess.com"]
[Source "ChessBase"]
[SourceQuality "1"]
[TimeControl "40/5400+30:1800+30"]

1. Nf3 {[%emt 0:00:00]} Nf6 {[%emt 0:00:00]} 2. c4 {[%emt 0:00:00]} e6 {[%emt 0:00:00]} 3. g3 {[%emt 0:00:04]} b6 {[%emt 0:00:19]} 4. Bg2 {[%emt 0:00:10]} Bb7 {[%emt 0:00:04]} 5. O-O {[%emt 0:00:17]} Be7 {[%emt 0:00:58]} 6. d4 {[%emt 0:00:17]} O-O {[%emt 0:00:29]} 7. Nc3 {[%emt 0:00:31]} Ne4 {[%emt 0:00:24]} 8. Nxe4 {[%emt 0:00:36]} Bxe4 {[%emt 0:00:07]} 9. Ne1 {[%emt 0:00:06]} Bxg2 {[%emt 0:01:46]} 10. Nxg2 {[%emt 0:00:07]} d5 {[%emt 0:03:25]} 11. Qc2 {[%emt 0:08:53]} c5 {[%emt 0:04:14]} 12. cxd5 {[%emt 0:06:45]} Qxd5 {[%emt 0:00:52]} 13. dxc5 {[%emt 0:01:35]} Bxc5 {[%emt 0:04:12]} 14. Be3 {[%emt 0:08:04]} Nd7 {[%emt 0:05:59]} 15. Rfd1 {[%emt 0:07:56]} Qb7 {[%emt 0:00:15]} 16. Bxc5 {[%emt 0:14:17]} Nxc5 {[%emt 0:00:19]} 17. b4 {[%emt 0:00:10]} Qe4 {[%emt 0:12:54]} 18. Qd2 {[%emt 0:15:25]} Na4 {[%emt 0:01:30]} 19. Rac1 {[%emt 0:01:32]} a5 {[%emt 0:02:11]} 20. bxa5 {[%emt 0:03:13]} Rxa5 {[%emt 0:01:22]} 21. Rc8 {[%emt 0:04:24]} Ra8 {[%emt 0:08:29]} 22. Rxa8 {[%emt 0:00:44]} Qxa8 {[%emt 0:00:08]} 23. Qb4 {[%emt 0:00:48]} Rc8 {[%emt 0:02:15]} 24. Qe7 {[%emt 0:05:26]} Nb2 {[%emt 0:25:17]} 25. Ra1 {[%emt 0:04:55]} Qc6 {[%emt 0:04:05]} 26. Ne3 {[%emt 0:01:25]} b5 {[%emt 0:03:38]} 27. Qb4 {[%emt 0:00:45]} Na4 {[%emt 0:00:56]} 28. Rd1 {[%emt 0:01:05]} Qa8 {[%emt 0:08:18] normal} 1/2-1/2

[Event "GER-ch Youth U14 2019"]
[Site "Willingen"]
[Date "2019.06.11"]
[Round "4.5"]
[White "Laux, Dominik"]
[Black "Musiolik, David"]
[Result "0-1"]
[ECO "D37"]
[WhiteElo "2061"]
[BlackElo "2132"]
[Annotator "NA"]
[PlyCount "54"]
[EventDate "2019.06.07"]
[EventType "swiss"]
[EventRounds "9"]
[EventCountry "GER"]
[SourceTitle "playchess.com"]
[Source "ChessBase"]
[SourceQuality "1"]
[TimeControl "40/5400+30:1800+30"]

1. d4 {[%emt 0:00:00]} d5 {[%emt 0:00:00]} 2. c4 {[%emt 0:00:26]} e6 {[%emt 0:00:00]} 3. Nc3 {[%emt 0:00:24]} Be7 {[%emt 0:00:00]} 4. Nf3 {[%emt 0:00:19]} Nf6 {[%emt 0:00:02]} 5. Bf4 {[%emt 0:00:07]} O-O {[%emt 0:01:45]} 6. e3 {[%emt 0:00:26]} c6 {[%emt 0:03:53]} 7. Qc2 {[%emt 0:01:16]} Nbd7 {[%emt 0:14:13]} 8. h3 {[%emt 0:00:37]} Re8 {[%emt 0:05:35]} 9. Rd1 {[%emt 0:04:45]} Bf8 {[%emt 0:02:55]} 10. Bd3 {[%emt 0:04:06]} dxc4 {[%emt 0:01:27]} 11. Bxc4 {[%emt 0:00:02]} Nb6 {[%emt 0:01:08]} 12. Bd3 {[%emt 0:05:05]} Nbd5 {[%emt 0:03:39]} 13. Nxd5 {[%emt 0:02:10]} exd5 {[%emt 0:00:12]} 14. O-O {[%emt 0:01:31]} h6 {[%emt 0:01:22]} 15. Ne5 {[%emt 0:02:31]} Be6 {[%emt 0:04:44]} 16. Rb1 {[%emt 0:06:29]} a5 {[%emt 0:07:38]} 17. g4 {[%emt 0:09:40]} Nd7 {[%emt 0:03:40]} 18. Bg3 {[%emt 0:03:36]} Nxe5 {[%emt 0:01:12]} 19. dxe5 {[%emt 0:04:03]} d4 {[%emt 0:01:55]} 20. e4 {[%emt 0:01:46]} Bxa2 {[%emt 0:02:50]} 21. Ra1 {[%emt 0:01:26]} Be6 {[%emt 0:00:11]} 22. f4 {[%emt 0:00:54]} Qb6 {[%emt 0:01:18]} 23. f5 {[%emt 0:05:20]} Bb3 {[%emt 0:00:35]} 24. Qe2 {[%emt 0:03:58]} c5 {[%emt 0:02:39]} 25. h4 {[%emt 0:03:49]} c4 {[%emt 0:00:50]} 26. Bb1 {[%emt 0:01:36]} d3+ {[%emt 0:00:05]} 27. Qf2 {[%emt 0:00:05]} Bc5 {[%emt 0:00:05] normal} 0-1

[Event "GER-ch Youth U14 2019"]
[Site "Willingen"]
[Date "2019.06.11"]
[Round "4.6"]
[White "Roste, Hugo"]
[Black "Lutz, Ruben"]
[Result "0-1"]
[ECO "D25"]
[WhiteElo "1287"]
[BlackElo "2055"]
[Annotator "NA"]
[PlyCount "74"]
[EventDate "2019.06.07"]
[EventType "swiss"]
[EventRounds "9"]
[EventCountry "GER"]
[SourceTitle "playchess.com"]
[Source "ChessBase"]
[SourceQuality "1"]
[TimeControl "40/5400+30:1800+30"]

1. d4 {[%emt 0:00:00]} d5 {[%emt 0:00:00]} 2. c4 {[%emt 0:00:00]} dxc4 {[%emt 0:00:00]} 3. Nf3 {[%emt 0:00:00]} Nf6 {[%emt 0:00:03]} 4. e3 {[%emt 0:00:23]} Bg4 {[%emt 0:00:30]} 5. Bxc4 {[%emt 0:02:04]} e6 {[%emt 0:00:04]} 6. Nc3 {[%emt 0:02:40]} Bd6 {[%emt 0:01:27]} 7. e4 {[%emt 0:02:35]} Bb4 {[%emt 0:47:27]} 8. Bg5 {[%emt 0:09:38]} Bxc3+ {[%emt 0:01:54]} 9. bxc3 {[%emt 0:00:14]} h6 {[%emt 0:01:44]} 10. Bxf6 {[%emt 0:01:16]} Qxf6 {[%emt 0:03:02]} 11. h3 {[%emt 0:03:40]} Bxf3 {[%emt 0:00:19]} 12. Qxf3 {[%emt 0:00:10]} Qxf3 {[%emt 0:00:52]} 13. gxf3 {[%emt 0:00:07]} Nd7 {[%emt 0:01:01]} 14. Ke2 {[%emt 0:02:38]} Nb6 {[%emt 0:01:59]} 15. Bb3 {[%emt 0:02:01]} Rc8 {[%emt 0:00:53]} 16. Rac1 {[%emt 0:07:36]} c5 {[%emt 0:00:34]} 17. Rhd1 {[%emt 0:09:51]} Ke7 {[%emt 0:07:10]} 18. a3 {[%emt 0:03:33]} Rhd8 {[%emt 0:00:56]} 19. Ke3 {[%emt 0:01:12]} f5 {[%emt 0:10:35]} 20. e5 {[%emt 0:03:49]} c4 {[%emt 0:00:25]} 21. Ba2 {[%emt 0:01:19]} Nd5+ {[%emt 0:00:16]} 22. Kd2 {[%emt 0:01:14]} b5 {[%emt 0:06:44]} 23. Rg1 {[%emt 0:03:33]} Kf7 {[%emt 0:00:26]} 24. h4 {[%emt 0:02:37]} g6 {[%emt 0:00:16]} 25. Rg3 {[%emt 0:01:21]} a5 {[%emt 0:04:29]} 26. Rb1 {[%emt 0:01:36]} Rb8 {[%emt 0:00:11]} 27. Rgg1 {[%emt 0:00:52]} b4 {[%emt 0:01:34]} 28. axb4 {[%emt 0:02:46]} axb4 {[%emt 0:00:08]} 29. cxb4 {[%emt 0:02:15]} c3+ {[%emt 0:00:08]} 30. Ke2 {[%emt 0:01:54]} Nxb4 {[%emt 0:00:30]} 31. Bb3 {[%emt 0:01:17]} Rxd4 {[%emt 0:02:09]} 32. Rbc1 {[%emt 0:01:24]} Nd5 {[%emt 0:02:34]} 33. Bxd5 {[%emt 0:02:02]} Rxd5 {[%emt 0:00:22]} 34. f4 {[%emt 0:00:47]} Rb2+ {[%emt 0:02:00]} 35. Ke3 {[%emt 0:04:49]} c2 {[%emt 0:01:20]} 36. Rge1 {[%emt 0:02:20]} Rb4 {[%emt 0:01:27]} 37. Rxc2 {[%emt 0:02:06]} Re4+ {[%emt 0:00:04] normal} 0-1